Workbook

Sheet Inputs
A4: Months | B4: 14
A6: Income month 1 | B6: 1000
A7: Growth rate | B7: 0.01

Sheet Calculation
B3: Month | C3: 1 | D3: =+C3+1 -> 2 | E3: =+D3+1 -> 3 | F3: =+E3+1 -> 4 | G3: =+F3+1 -> 5 | H3: =+G3+1 -> 6 | I3: =+H3+1 -> 7 | J3: =+I3+1 -> 8 | K3: =+J3+1 -> 9 | L3: =+K3+1 -> 10 | M3: =+L3+1 -> 11 | N3: =+M3+1 -> 12 | O3: =+N3+1 -> 13 | Q3: =+P3+1 -> 1
B5: Income | C5: =+Inputs!B6 -> 1000 | D5: =+C5*(1+Inputs!$B$7) -> 1010 | E5: =+D5*(1+Inputs!$B$7) -> 1020.1 | F5: =+E5*(1+Inputs!$B$7) -> 1030.301 | G5: =+F5*(1+Inputs!$B$7) -> 1040.60401 | H5: =+G5*(1+Inputs!$B$7) -> 1051.01005 | I5: =+H5*(1+Inputs!$B$7) -> 1061.520151 | J5: =+I5*(1+Inputs!$B$7) -> 1072.135352 | K5: =+J5*(1+Inputs!$B$7) -> 1082.856706 | L5: =+K5*(1+Inputs!$B$7) -> 1093.685273 | M5: =+L5*(1+Inputs!$B$7) -> 1104.622125 | N5: =+M5*(1+Inputs!$B$7) -> 1115.668347 | O5: =+N5*(1+Inputs!$B$7) -> 1126.82503 | Q5: =+P5*(1+Inputs!$B$7) -> 0

Sheet Base
B3: Month | C3: 1 | E3: =+D3+1 -> 1
B5: Income | C5: =+Inputs!B6 -> 1000 | E5: =+D5*(1+Inputs!$B$7) -> 0
